fUST/lending_fUST_20250824
["ID","MTS","AMOUNT","RATE_DAILY","PERIOD"]
[381045093,1755971443539,-326.0,0.000359,14]
[381045095,1755971443553,-326.0,0.000359,14]
[381045098,1755971443568,-326.0,0.000359,14]
[381045100,1755971443582,-326.0,0.000359,14]
[381045103,1755971443597,-161.0,0.000359,14]
[381045106,1755971443612,-326.0,0.000359,14]
[381045108,1755971443625,-161.0,0.000359,14]
[381045111,1755971443640,-326.0,0.000359,14]
[381045113,1755971443655,-326.0,0.000359,14]
[381045116,1755971443669,-161.0,0.000359,14]
[381045117,1755971443685,-326.0,0.000359,14]
[381045118,1755971443700,-161.0,0.000359,14]
[381045119,1755971443714,-326.0,0.000359,14]
[381045120,1755971443728,-326.0,0.000359,14]
[381045121,1755971443743,-161.0,0.000359,14]
[381045122,1755971443757,-326.0,0.000359,14]
[381045123,1755971443772,-156.51496579,0.000359,14]
[381045124,1755971443787,-326.0,0.000359,14]
[381045125,1755971443801,-326.0,0.000359,14]
[381045126,1755971443816,-326.0,0.000359,14]
[381045127,1755971443831,-326.0,0.000359,14]
[381045128,1755971443846,-326.0,0.000359,14]
[381045129,1755971443868,-326.0,0.000359,14]
[381045130,1755971443884,-326.0,0.000359,14]
[381045131,1755971443898,-326.0,0.000359,14]
[381045132,1755971443913,-326.0,0.000359,14]
[381045133,1755971443927,-326.0,0.000359,14]
[381045134,1755971443941,-326.0,0.000359,14]
[381045135,1755971443955,-326.0,0.000359,14]
[381045136,1755971443970,-326.0,0.000359,14]
[381045137,1755971443993,-326.0,0.000359,14]
[381045138,1755971444007,-326.0,0.000359,14]
[381045139,1755971444021,-326.0,0.000359,14]
[381045140,1755971444036,-326.0,0.000359,14]
[381045141,1755971444050,-326.0,0.000359,14]
[381045142,1755971444065,-326.0,0.000359,14]
[381045143,1755971444080,-326.0,0.000359,14]
[381045144,1755971444096,-354.15206038,0.000359,14]
[381045145,1755971444221,-166.0,0.000359,14]
[381045146,1755971444233,-166.0,0.000359,14]
[381045147,1755971444242,-153.0,0.000359,14]
[381045148,1755971444252,-153.0,0.000359,14]
[381045149,1755971444261,-4107.02713647,0.000359,120]
[381045150,1755971444271,-234.05,0.000359,14]
[381045151,1755971444281,-151.0,0.000359,14]
[381045152,1755971444291,-234.05,0.000359,14]
[381045153,1755971444300,-234.05,0.000359,14]
[381045154,1755971444310,-234.05,0.000359,14]
[381045155,1755971444321,-168.823839,0.000359,14]
[381045156,1755971444331,-168.823839,0.000359,14]
[381045157,1755971444340,-168.823839,0.000359,14]
[381045158,1755971444351,-275.952612,0.000359,14]
[381045159,1755971444360,-168.823839,0.000359,14]
[381045160,1755971444371,-275.952612,0.000359,14]
[381045161,1755971444381,-275.952612,0.000359,14]
[381045162,1755971444391,-275.952612,0.000359,14]
[381045163,1755971444401,-151.0,0.000359,14]
[381045164,1755971444411,-151.0,0.000359,14]
[381045165,1755971444420,-151.0,0.000359,14]
[381045166,1755971444430,-163.178096,0.000359,14]
[381045167,1755971444439,-151.000002,0.000359,14]
[381045168,1755971444448,-167.428659,0.000359,14]
[381045169,1755971444458,-167.428659,0.000359,14]
[381045170,1755971444467,-167.428659,0.000359,14]
[381045171,1755971444476,-167.428659,0.000359,14]
[381045172,1755971444486,-151.0,0.000359,14]
[381045173,1755971444495,-151.0,0.000359,14]
[381045174,1755971444503,-251.870069,0.000359,14]
[381045175,1755971444513,-251.870069,0.000359,14]
[381045176,1755971444523,-251.870069,0.000359,14]
[381045177,1755971444532,-251.870069,0.000359,14]
[381045178,1755971444541,-151.0,0.000359,14]
[381045179,1755971444550,-151.0,0.000359,14]
[381045180,1755971444560,-151.429622,0.000359,14]
[381045181,1755971444568,-151.0,0.000359,14]
[381045182,1755971444578,-151.0,0.000359,14]
[381045183,1755971444587,-151.0,0.000359,14]
[381045184,1755971444596,-151.0,0.000359,14]
[381045185,1755971444606,-274.379056,0.000359,14]
[381045186,1755971444615,-151.0,0.000359,14]
[381045187,1755971444624,-151.0,0.000359,14]
[381045188,1755971444633,-151.0,0.000359,14]
[381045189,1755971444642,-163.390428,0.000359,14]
[381045190,1755971444651,-163.390428,0.000359,14]
[381045191,1755971444660,-163.390428,0.000359,14]
[381045192,1755971444669,-163.390428,0.000359,14]
[381045193,1755971444678,-151.0,0.000359,14]
[381045194,1755971444688,-151.0,0.000359,14]
[381045195,1755971444697,-151.0,0.000359,14]
[381045196,1755971444706,-321.5,0.000359,2]
[381045197,1755971444715,-151.0,0.00035909,30]
[381045198,1755971444724,-1957.856,0.00035909,30]
[381045199,1755971444733,-161.00230885,0.0003591,30]
[381045200,1755971444743,-944053.81984419,0.00036,60]
[381045201,1755971444754,-250.0,0.00036,14]
[381045202,1755971444765,-251.7,0.00036,14]
[381045203,1755971444774,-250.0,0.00036,14]
[381045204,1755971444784,-250.0,0.00036,14]
[381045205,1755971444794,-250.0,0.00036,14]
[381045206,1755971444803,-250.0,0.00036,14]
[381045207,1755971444812,-151.0,0.00036,14]
[381045208,1755971444821,-151.0,0.00036,14]
[381045209,1755971444830,-151.0,0.00036,14]
[381045210,1755971444840,-151.0,0.00036,14]
[381045211,1755971444849,-151.0,0.00036,14]
[381045212,1755971444859,-151.0,0.00036,14]
[381045213,1755971444868,-151.0,0.00036,14]
[381045214,1755971444878,-151.0,0.00036,14]
[381045215,1755971444888,-206.962413,0.00036,14]
[381045216,1755971444898,-206.962413,0.00036,14]
[381045217,1755971444907,-206.962413,0.00036,14]
[381045218,1755971444917,-206.962413,0.00036,14]
[381045219,1755971444927,-151.0,0.00036,14]
[381045220,1755971444937,-151.0,0.00036,14]
[381045221,1755971444946,-151.0,0.00036,14]
[381045222,1755971444956,-151.0,0.00036,14]
[381045223,1755971444966,-151.0,0.00036,14]
[381045224,1755971444975,-151.0,0.00036,14]
[381045225,1755971444985,-153.299575,0.00036,14]
[381045226,1755971444994,-151.0,0.00036,14]
[381045227,1755971445004,-151.0,0.00036,14]
[381045228,1755971445013,-151.0,0.00036,14]
[381045229,1755971445023,-151.0,0.00036,14]
[381045230,1755971445032,-271.928,0.00036,14]
[381045231,1755971445041,-151.0,0.00036,14]
[381045232,1755971445051,-151.0,0.00036,14]
[381045233,1755971445061,-151.0,0.00036,14]
[381045234,1755971445070,-151.0,0.00036,14]
[381045235,1755971445079,-151.0,0.00036,14]
[381045236,1755971445088,-151.0,0.00036,14]
[381045237,1755971445100,-151.0,0.00036,14]
[381045238,1755971445109,-151.0,0.00036,14]
[381045239,1755971445119,-151.0,0.00036,14]
[381045240,1755971445129,-151.0,0.00036,14]
[381045241,1755971445138,-154.040978,0.00036,14]
[381045242,1755971445148,-234.05,0.00036,14]
[381045243,1755971445157,-151.0,0.00036,14]
[381045244,1755971445167,-234.05,0.00036,14]
[381045245,1755971445176,-234.05,0.00036,14]
[381045246,1755971445185,-168.823839,0.00036,14]
[381045247,1755971445195,-234.05,0.00036,14]
[381045248,1755971445205,-168.823839,0.00036,14]
[381045249,1755971445214,-168.823839,0.00036,14]
[381045250,1755971445224,-275.952612,0.00036,14]
[381045251,1755971445233,-168.823839,0.00036,14]
[381045252,1755971445242,-275.952612,0.00036,14]
[381045253,1755971445251,-275.952612,0.00036,14]
[381045254,1755971445261,-275.952612,0.00036,14]
[381045255,1755971445270,-151.0,0.00036,14]
[381045256,1755971445282,-151.0,0.00036,14]
[381045257,1755971445291,-151.0,0.00036,14]
[381045258,1755971445302,-167.428659,0.00036,14]
[381045259,1755971445314,-167.428659,0.00036,14]
[381045260,1755971445324,-167.428659,0.00036,14]
[381045261,1755971445334,-167.428659,0.00036,14]
[381045262,1755971445343,-151.0,0.00036,14]
[381045264,1755971445353,-151.0,0.00036,14]
[381045265,1755971445361,-251.870069,0.00036,14]
[381045266,1755971445371,-251.870069,0.00036,14]
[381045267,1755971445380,-251.870069,0.00036,14]
[381045268,1755971445389,-251.870069,0.00036,14]
[381045269,1755971445399,-151.0,0.00036,14]
[381045270,1755971445408,-151.0,0.00036,14]
[381045271,1755971445418,-151.0,0.00036,14]
[381045272,1755971445427,-151.0,0.00036,14]
[381045273,1755971445436,-151.0,0.00036,14]
[381045274,1755971445445,-151.0,0.00036,14]
[381045275,1755971445455,-151.0,0.00036,14]
[381045276,1755971445464,-151.0,0.00036,14]
[381045277,1755971445473,-151.0,0.00036,14]
[381045278,1755971445483,-163.390428,0.00036,14]
[381045279,1755971445492,-163.390428,0.00036,14]
[381045280,1755971445502,-163.390428,0.00036,14]
[381045281,1755971445511,-163.390428,0.00036,14]
[381045282,1755971445520,-151.0,0.00036,14]
[381045283,1755971445529,-151.0,0.00036,14]
[381045284,1755971445539,-151.0,0.00036,14]
[381045285,1755971445548,-217.276178,0.00036,14]
[381045286,1755971445558,-151.0,0.00036,14]
[381045287,1755971445567,-217.276178,0.00036,14]
[381045288,1755971445576,-217.276178,0.00036,14]
[381045289,1755971445585,-217.276178,0.00036,14]
[381045290,1755971445594,-151.0,0.00036,14]
[381045291,1755971445603,-151.0,0.00036,14]
[381045292,1755971445612,-156.827788,0.00036,14]
[381045293,1755971445621,-156.827788,0.00036,14]
[381045294,1755971445631,-156.827788,0.00036,14]
[381045295,1755971445640,-156.827788,0.00036,14]
[381045296,1755971445649,-151.0,0.00036,14]
[381045297,1755971445744,-151.0,0.00036,14]
[381045298,1755971445755,-225.880552,0.00036,14]
[381045299,1755971445765,-151.0,0.00036,14]
[381045300,1755971445775,-225.880552,0.00036,14]
[381045301,1755971445787,-225.880552,0.00036,14]
[381045302,1755971445796,-185.969205,0.00036,14]
[381045303,1755971445806,-151.0,0.00036,14]
[381045304,1755971445815,-185.969205,0.00036,14]
[381045305,1755971445825,-185.969205,0.00036,14]
[381045306,1755971445835,-185.969205,0.00036,14]
[381045307,1755971445844,-253.902851,0.00036,14]
[381045308,1755971445854,-151.0,0.00036,14]
[381045309,1755971445863,-253.902851,0.00036,14]
[381045310,1755971445872,-151.0,0.00036,14]
[381045311,1755971445881,-253.902851,0.00036,14]
[381045312,1755971445891,-151.0,0.00036,14]
[381045313,1755971445900,-253.902851,0.00036,14]
[381045314,1755971445910,-151.0,0.00036,14]
[381045315,1755971445919,-151.0,0.00036,14]
[381045316,1755971445929,-151.0,0.00036,14]
[381045317,1755971445939,-151.0,0.00036,14]
[381045318,1755971445948,-151.0,0.00036,14]
[381045319,1755971445958,-151.0,0.00036,14]
[381045320,1755971445967,-151.0,0.00036,14]
[381045321,1755971445977,-151.0,0.00036,14]
[381045322,1755971445986,-151.0,0.00036,14]
[381045323,1755971445995,-151.0,0.00036,14]
[381045324,1755971446006,-151.0,0.00036,7]
[381045325,1755971446015,-151.0,0.00036,14]
[381045326,1755971446024,-151.0,0.00036,14]
[381045327,1755971446034,-603.222689,0.00036,14]
[381045328,1755971446043,-603.222689,0.00036,14]
[381045329,1755971446053,-690.372038,0.00036,14]
[381045330,1755971446062,-603.222689,0.00036,14]
[381045331,1755971446072,-690.372038,0.00036,14]
[381045332,1755971446081,-603.222689,0.00036,14]
[381045333,1755971446091,-690.372038,0.00036,14]
[381045334,1755971446103,-690.372038,0.00036,14]
[381045335,1755971446112,-151.0,0.00036,14]
[381045336,1755971446122,-381.501733,0.00036,14]
[381045337,1755971446131,-381.501733,0.00036,14]
[381045338,1755971446141,-381.501733,0.00036,14]
[381045339,1755971446150,-381.501733,0.00036,14]
[381045340,1755971446159,-151.0,0.00036,14]
[381045342,1755971446168,-223.365212,0.00036,14]
[381045344,1755971446179,-151.0,0.00036,14]
[381045346,1755971446189,-223.365212,0.00036,14]
[381045348,1755971446198,-258.47376,0.00036,14]
[381045350,1755971446208,-223.365212,0.00036,14]
[381045351,1755971446217,-247.253825,0.00036,14]
[381045353,1755971446227,-247.253825,0.00036,14]
[381045355,1755971446236,-223.365212,0.00036,14]
[381045357,1755971446246,-247.253825,0.00036,14]
[381045359,1755971446256,-247.253825,0.00036,14]
[381045361,1755971446265,-151.0,0.00036,14]
[381045363,1755971446275,-151.0,0.00036,14]
[381045365,1755971446285,-205.226161,0.00036,14]
[381045367,1755971446296,-445.254318,0.00036,14]
[381045369,1755971446308,-445.254318,0.00036,14]
[381045372,1755971446318,-445.254318,0.00036,14]
[381045374,1755971446327,-445.254318,0.00036,14]
[381045376,1755971446337,-2064.73252,0.00036,14]
[381045378,1755971446346,-2064.73252,0.00036,14]
[381045380,1755971446360,-2064.73252,0.00036,14]
[381045382,1755971446370,-2064.73252,0.00036,14]
[381045383,1755971446379,-152.56262,0.00036,14]
[381045385,1755971446388,-170.011477,0.00036,14]
[381045387,1755971446397,-170.011477,0.00036,14]
[381045389,1755971446407,-170.011477,0.00036,14]
[381045392,1755971446417,-318.532295,0.00036,14]
[381045394,1755971446426,-170.011477,0.00036,14]
[381045396,1755971446435,-318.532295,0.00036,14]
[381045398,1755971446444,-165.339068,0.00036,14]
[381045400,1755971446453,-151.0,0.00036,14]
[381045402,1755971446462,-318.532295,0.00036,14]
[381045404,1755971446472,-165.339068,0.00036,14]
[381045406,1755971446482,-318.532295,0.00036,14]
[381045408,1755971446491,-151.0,0.00036,14]
[381045410,1755971446500,-151.0,0.00036,14]
[381045412,1755971446509,-165.339068,0.00036,14]
[381045414,1755971446518,-637.827919,0.00036,14]
[381045416,1755971446528,-165.339068,0.00036,14]
[381045418,1755971446539,-637.827919,0.00036,14]
[381045420,1755971446548,-637.827919,0.00036,14]
[381045422,1755971446557,-151.0,0.00036,14]
[381045423,1755971446567,-637.827919,0.00036,14]
[381045425,1755971446576,-229.139203,0.00036,14]
[381045427,1755971446585,-229.139203,0.00036,14]
[381045429,1755971446595,-229.139203,0.00036,14]
[381045431,1755971446604,-229.139203,0.00036,14]
[381045433,1755971446613,-170.41409,0.00036,14]
[381045435,1755971446624,-170.41409,0.00036,14]
[381045438,1755971446634,-151.0,0.00036,14]
[381045440,1755971446643,-170.41409,0.00036,14]
[381045441,1755971446653,-170.41409,0.00036,14]
[381045443,1755971446662,-151.0,0.00036,14]
[381045445,1755971446671,-151.0,0.00036,14]
[381045448,1755971446682,-151.0,0.00036,14]
[381045449,1755971446696,-151.0,0.00036,14]
[381045452,1755971446707,-151.0,0.00036,14]
[381045454,1755971446716,-151.0,0.00036,14]
[381045455,1755971446725,-151.0,0.00036,14]
[381045457,1755971446734,-151.0,0.00036,14]
[381045459,1755971446743,-380.540903,0.00036,14]
[381045461,1755971446752,-659.173718,0.00036,14]
[381045462,1755971446762,-380.540903,0.00036,14]
[381045463,1755971446772,-151.0,0.00036,14]
[381045464,1755971446781,-659.173718,0.00036,14]
[381045466,1755971446791,-380.540903,0.00036,14]
[381045468,1755971446800,-380.540903,0.00036,14]
[381045469,1755971446810,-659.173718,0.00036,14]
[381045471,1755971446820,-659.173718,0.00036,14]
[381045472,1755971446829,-151.0,0.00036,14]
[381045474,1755971446839,-151.0,0.00036,14]
[381045475,1755971446848,-151.0,0.00036,14]
[381045476,1755971446857,-151.0,0.00036,14]
[381045477,1755971446867,-151.0,0.00036,14]
[381045478,1755971446876,-151.0,0.00036,14]
[381045479,1755971446885,-151.0,0.00036,14]
[381045480,1755971446895,-151.0,0.00036,14]
[381045481,1755971446909,-151.0,0.00036,14]
[381045482,1755971446927,-397.997009,0.00036,14]
[381045483,1755971446936,-397.997009,0.00036,14]
[381045484,1755971446946,-1359.961133,0.00036,14]
[381045485,1755971446955,-397.997009,0.00036,14]
[381045486,1755971446965,-1359.961133,0.00036,14]
[381045487,1755971446974,-151.0,0.00036,14]
[381045488,1755971446983,-1359.961133,0.00036,14]
[381045489,1755971446992,-397.997009,0.00036,14]
[381045490,1755971447002,-389.672715,0.00036,14]
[381045491,1755971447011,-151.0,0.00036,14]
[381045492,1755971447021,-389.672715,0.00036,14]
[381045493,1755971447030,-1359.961133,0.00036,14]
[381045494,1755971447041,-151.0,0.00036,14]
[381045495,1755971447051,-389.672715,0.00036,14]
[381045496,1755971447062,-651.04437679,0.00036099,2]
[381045497,1755971447072,-155.87,0.000361,7]
[381045498,1755971447081,-1126.42,0.000361,7]
[381045499,1755971447091,-151.0,0.0003611,7]
[381045500,1755971447184,-151.0,0.0003611,7]
[381045501,1755971447194,-151.0,0.0003611,7]
[381045502,1755971447204,-500.0,0.0003611,7]
[381045503,1755971447214,-500.0,0.0003611,7]
[381045504,1755971447224,-151.0,0.0003611,7]
[381045505,1755971447234,-151.0,0.0003611,7]
[381045506,1755971447243,-151.0,0.0003611,7]
[381045507,1755971447253,-151.0,0.0003611,7]
[381045508,1755971447263,-151.0,0.0003611,7]
[381045509,1755971447272,-151.0,0.0003611,7]
[381045510,1755971447283,-151.0,0.0003611,7]
[381045511,1755971447292,-151.96446113,0.0003611,7]
[381045512,1755971447302,-151.0,0.0003611,7]
[381045513,1755971447312,-151.0,0.0003611,7]
[381045514,1755971447322,-151.0,0.0003611,7]
[381045515,1755971447331,-151.0,0.0003611,7]
[381045516,1755971447340,-151.0,0.0003611,7]
[381045517,1755971447350,-151.0,0.0003611,7]
[381045518,1755971447359,-122.4726209,0.0003611,7]
[381045519,1755971448409,-0.02237085,0.00025986,10]
[381045520,1755971448817,-196.08762915,0.00025986,10]
[381045521,1755971448827,-389.672715,0.00036,14]
[381045522,1755971448836,-151.0,0.00036,14]
[381045523,1755971448846,-28.5273791,0.0003611,7]
[381045524,1755971448856,-151.50781124,0.0003611,7]
[381045525,1755971448865,-151.31787865,0.0003611,7]
[381045526,1755971448874,-151.0,0.0003611,7]
[381045527,1755971448884,-151.27193599,0.0003611,7]
[381045528,1755971448893,-500.0,0.0003611,7]
[381045529,1755971448903,-151.0,0.0003611,7]
[381045530,1755971448912,-151.0,0.0003611,7]
[381045531,1755971448922,-151.0,0.0003611,7]
[381045532,1755971448932,-484.27925349,0.00036158,2]
[381045533,1755971460542,-199.0,0.00025886,10]
[381045534,1755971460563,-385.26603376,0.00030158,2]
[381045535,1755971596915,431.83157383,0.000199,2]
[381045536,1755971596973,431.83157382,0.0002508,2]
[381045537,1755971597290,431.83157382,0.00023353,2]
[381045538,1755971597359,431.83157382,0.00021627,2]
[381045539,1755971670996,3000.0,0.000216,2]
[381045540,1755971767972,374.25403076,0.000199,2]
[381045541,1755971768127,374.25403064,0.00021627,2]
[381045542,1755971768187,374.25403064,0.0002508,2]
[381045543,1755971768396,374.25403064,0.00023353,2]
[381045544,1755971815309,-199.0,0.00025786,10]
[381045545,1755971819620,199.0,0.00025686,10]
[381045546,1755971826224,1432.008598,0.00025072,2]
[381045547,1755971934246,324.35349326,0.000199,2]
[381045548,1755971934454,324.35349322,0.00023353,2]
[381045549,1755971934630,324.35349322,0.00021627,2]
[381045550,1755971935112,324.35349322,0.0002508,2]
[381045552,1755972013348,-160.0,0.00026066,2]
[381045553,1755972013376,-160.0,0.00026069,2]
[381045554,1755972013405,-1200.0,0.0002607,2]
[381045555,1755972013432,-300.0,0.00026071,2]
[381045556,1755972013459,-300.0,0.00026071,2]
[381045557,1755972013488,-300.0,0.00026071,2]
[381045562,1755972106071,281.10636079,0.00021627,2]
[381045563,1755972106304,281.10636079,0.0002508,2]
[381045564,1755972106659,281.10636079,0.00023353,2]
[381045565,1755972107019,281.10636081,0.000199,2]
[381045566,1755972112316,-300.0,0.00026071,2]
[381045567,1755972112346,-425.227,0.00026071,12]
[381045568,1755972135265,-300.0,0.00026071,2]
[381045569,1755972153386,-163.03316967,0.00026066,2]
[381045570,1755972165149,1991.75952137,0.00025973,2]
[381045571,1755972172636,-3159.3824974,0.00026072,2]
[381045572,1755972175391,-463.72154916,0.00026072,2]
[381045573,1755972175414,-9072.56690168,0.00026072,2]
[381045574,1755972180304,-160.0,0.00026072,2]
[381045575,1755972180333,-844.50316758,0.00026072,2]
[381045576,1755972180360,-160.0,0.00026072,2]
[381045577,1755972180388,-529.05847148,0.00026072,2]
[381045578,1755972180416,-232.37252479,0.00026072,2]
[381045579,1755972180443,-217.0334113,0.00026072,2]
[381045580,1755972180472,-376.14580871,0.00026072,2]
[381045581,1755972180500,-160.0,0.00026072,2]
[381045582,1755972180527,-160.0,0.00026072,2]
[381045583,1755972180554,-160.0,0.00026072,2]
[381045584,1755972180581,-160.0,0.00026072,2]
[381045585,1755972180758,-3681.78323228,0.00026072,2]
[381045586,1755972193431,-300.0,0.00026071,2]
[381045587,1755972193460,-500.0,0.00026073,2]
[381045588,1755972193487,-500.0,0.00026073,2]
[381045589,1755972193514,-500.0,0.00026073,2]
[381045590,1755972193541,-500.0,0.00026073,2]
[381045591,1755972193568,-500.0,0.00026073,2]
[381045592,1755972193595,-500.0,0.00026073,2]
[381045593,1755972193623,-500.0,0.00026073,2]
[381045594,1755972193650,-210.59916886,0.00026073,2]
[381045595,1755972201786,214.28815558,0.00026069,2]
[381045596,1755972213458,-215.94678008,0.0002618,2]
[381045598,1755972278574,524.08214978,0.000199,2]
[381045599,1755972278669,524.08214969,0.00021627,2]
[381045600,1755972278851,524.08214969,0.0002508,2]
[381045601,1755972278944,524.08214969,0.00023353,2]
[381045605,1755972423758,-1200.0,0.0002662,2]
[381045606,1755972423786,-160.0,0.0002662,2]
[381045607,1755972423813,-844.50316758,0.0002662,2]
[381045608,1755972423841,-232.37252479,0.0002662,2]
[381045609,1755972423869,-160.0,0.0002662,2]
[381045610,1755972423897,-376.14580871,0.0002662,2]
[381045611,1755972423926,-160.0,0.0002662,2]
[381045612,1755972423959,-160.0,0.0002662,2]
[381045613,1755972423987,-1000.0,0.00026621,2]
[381045614,1755972424017,-413.96699784,0.00026621,2]
[381045615,1755972424328,-586.03300216,0.00026621,2]
[381045616,1755972424502,217.0334113,0.0002662,2]
[381045617,1755972424743,8610.91058438,0.0002662,2]
[381045618,1755972445100,454.20452977,0.000199,2]
[381045619,1755972445163,454.20452973,0.0002508,2]
[381045620,1755972445509,454.20452973,0.00023353,2]
[381045621,1755972453701,-4084.76036386,0.0002662,2]
[381045622,1755972504685,164.628817,0.00013699,2]
[381045623,1755972504905,164.628817,0.00024907,2]
[381045624,1755972513793,-454.20452973,0.00026806,6]
[381045625,1755972583462,266.7577701,0.00026193,2]
[381045626,1755972587933,-200.0812057,0.00026972,2]
[381045628,1755972611392,393.64392594,0.000199,2]
[381045630,1755972611499,393.64392576,0.0002508,2]
[381045631,1755972611593,393.64392576,0.00023353,2]
[381045632,1755972611940,393.64392576,0.00021627,2]
[381045633,1755972612118,393.64392576,0.00026806,6]
[381045635,1755972615356,-500.0,0.00027168,2]
[381045670,1755972632192,-269.0,0.0002728,2]
[381045672,1755972632202,-300.0,0.00027435,2]
[381045674,1755972632212,-1151.0,0.00027435,2]
[381045676,1755972632223,-376.14580871,0.00027436,2]
[381045678,1755972632233,-160.0,0.00027436,2]
[381045681,1755972632243,-844.50316758,0.00027436,2]
[381045682,1755972632253,-269.0,0.00027436,2]
[381045685,1755972632263,-232.37252479,0.00027436,2]
[381045687,1755972632272,-160.0,0.00027436,2]
[381045689,1755972632283,-217.0334113,0.00027436,2]
[381045690,1755972632292,-340.67429162,0.00027441,2]
[381045693,1755972632302,-500.0,0.00027529,5]
[381045696,1755972632313,-332.77917563,0.00027667,5]
[381045698,1755972632323,-500.0,0.00027667,5]
[381045699,1755972632332,-46318.21676772,0.00027678,2]
[381045701,1755972632342,-269.0,0.00027678,2]
[381045703,1755972632351,-500.0,0.00027679,5]
[381045705,1755972632361,-500.0,0.00027679,5]
[381045707,1755972632370,-269.0,0.00027748,2]
[381045708,1755972632380,-269.0,0.00027758,2]
[381045709,1755972632390,-3330.75879522,0.00027807,2]
[381045710,1755972632399,-157.296982,0.00027819,20]
[381045712,1755972632410,-152.582311,0.00027819,20]
[381045714,1755972632419,-500.0,0.00027938,5]
[381045716,1755972632429,-500.0,0.00027938,5]
[381045718,1755972632439,-417.15472785,0.00028,10]
[381045720,1755972632449,-269.0,0.00028016,2]
[381045722,1755972632459,-269.0,0.0002806,2]
[381045736,1755972632469,-1000.0,0.00028077,5]
[381045739,1755972632599,-269.0,0.0002808,2]
[381045741,1755972632608,-271.0,0.00028101,2]
[381045743,1755972632618,-1000.0,0.00028215,5]
[381045745,1755972632628,-500.0,0.00028278,5]
[381045747,1755972632637,-500.0,0.00028278,5]
[381045749,1755972632647,-500.0,0.00028278,5]
[381045751,1755972632657,-500.0,0.00028278,5]
[381045753,1755972632667,-500.0,0.00028278,5]
[381045755,1755972632676,-500.0,0.00028278,5]
[381045757,1755972632685,-500.0,0.00028278,5]
[381045759,1755972632694,-856.29546969,0.0002828,2]
[381045761,1755972632703,-651.480546,0.00028284,2]
[381045763,1755972632713,-271.0,0.00028292,7]
[381045765,1755972632723,-269.0,0.00028302,7]
[381045767,1755972632734,-271.0,0.00028321,2]
[381045769,1755972632743,-269.0,0.00028384,7]
[381045771,1755972632752,-1000.0,0.00028485,5]
[381045773,1755972632762,-1000.0,0.00028485,5]
[381045776,1755972632771,-393.64392576,0.00028533,10]